bitfinex/quotes_BTCUSD_20250522
["timestamp","ask_amount","ask_price","bid_price","bid_amount"]
[1747909910543,0.01102535,110790.0,110780.0,5.6064278]
[1747909910742,0.002,110790.0,110780.0,5.6212278]
[1747909911149,0.002,110790.0,110780.0,5.6482938]
[1747909912137,0.002,110790.0,110780.0,5.67462503]
[1747909912358,0.23096101,110810.0,110800.0,0.54758023]
[1747909912579,0.002,110810.0,110800.0,5.17463379]
[1747909912788,0.002,110810.0,110800.0,5.98826157]
[1747909913231,0.002,110810.0,110800.0,6.04046468]
[1747909913663,0.002,110810.0,110800.0,6.04061699]
[1747909914066,0.002,110810.0,110800.0,6.05438607]
[1747909914335,0.002,110810.0,110800.0,6.03024396]
[1747909914547,0.002,110810.0,110800.0,6.05537678]
[1747909914758,0.004,110810.0,110800.0,6.05537678]
[1747909915140,0.002,110810.0,110800.0,6.05537678]
[1747909915491,0.002,110830.0,110820.0,0.54754277]
[1747909915694,0.002,110830.0,110820.0,5.19319633]
[1747909915916,0.002,110830.0,110820.0,5.55414633]
[1747909916349,0.002,110830.0,110820.0,5.63718997]
[1747909916507,0.002,110830.0,110820.0,5.61858997]
[1747909916937,0.003,110830.0,110820.0,5.61858997]
[1747909917345,0.003,110830.0,110820.0,5.64564397]
[1747909918419,0.003,110830.0,110820.0,5.67904397]
[1747909918773,0.003,110830.0,110820.0,5.66424397]
[1747909919643,0.003,110830.0,110820.0,5.66524397]
[1747909919822,0.003,110830.0,110820.0,5.64664397]
[1747909920680,0.002,110830.0,110820.0,5.64664397]
[1747909921059,0.002,110830.0,110820.0,5.68104397]
[1747909921665,0.002,110850.0,110840.0,0.54750532]
[1747909921821,0.002,110850.0,110840.0,5.91388179]
[1747909922037,0.002,110850.0,110840.0,5.98805666]
[1747909922439,0.002,110850.0,110840.0,6.01510466]
[1747909924063,0.002,110850.0,110840.0,6.01610466]
[1747909924487,0.002,110850.0,110840.0,5.98370466]
[1747909924685,0.002,110850.0,110840.0,5.95737343]
[1747909924885,0.002,110850.0,110840.0,5.71682447]
[1747909924886,0.24156597,110850.0,110840.0,5.71682447]
[1747909925086,0.24156597,110850.0,110840.0,4.900388]
[1747909925485,0.24156597,110850.0,110840.0,5.0898502]
[1747909925816,0.24156597,110850.0,110840.0,5.240388]
[1747909926248,0.24156597,110850.0,110840.0,5.239388]
[1747909926866,0.24156597,110850.0,110840.0,5.238388]
[1747909926867,0.2325451,110850.0,110840.0,5.238388]
[1747909927042,0.2325451,110850.0,110840.0,3.39998]
[1747909927293,0.2325451,110850.0,110840.0,3.35548]
[1747909927517,0.2335451,110850.0,110840.0,0.36088]
[1747909927722,0.2345451,110850.0,110840.0,0.36088]
[1747909928102,0.60126134,110850.0,110840.0,0.36088]
[1747909928352,0.41080436,110850.0,110840.0,0.36088]
[1747909929710,0.33763151,110850.0,110840.0,0.36088]
[1747909930787,0.33663151,110850.0,110840.0,0.36088]
[1747909930994,0.33963151,110850.0,110840.0,0.36088]
[1747909931219,0.34263151,110850.0,110840.0,0.36088]
[1747909931843,0.34263151,110850.0,110840.0,0.31958]
[1747909931844,0.60526134,110850.0,110840.0,0.31958]
[1747909932080,0.60526134,110850.0,110840.0,0.29958]
[1747909932882,0.34263151,110850.0,110840.0,0.29958]
[1747909935600,0.35604541,110850.0,110840.0,0.29958]
[1747909935798,0.62867524,110850.0,110840.0,0.29958]
[1747909936008,0.25404248,110830.0,110820.0,0.05]
[1747909936204,0.23953745,110810.0,110800.0,0.002]
[1747909937092,0.23953745,110810.0,110800.0,0.342]
[1747909937308,0.21913745,110810.0,110800.0,0.342]
[1747909937528,0.21922896,110810.0,110800.0,0.342]
[1747909937758,0.21922896,110810.0,110800.0,4.879508]
[1747909938237,0.21020492,110810.0,110800.0,4.879508]
[1747909938507,0.21020492,110810.0,110800.0,4.929508]
[1747909939337,0.21020492,110810.0,110800.0,4.932508]
[1747909939564,0.21020492,110810.0,110800.0,4.933508]
[1747909939800,0.21020492,110810.0,110800.0,5.11101341]
[1747909940023,0.21020492,110810.0,110800.0,4.930508]
[1747909940656,0.21020492,110810.0,110800.0,2.3579]
[1747909940887,0.22990492,110810.0,110800.0,0.5518]
[1747909941084,0.22990492,110810.0,110800.0,0.5538]
[1747909944540,0.19862896,110810.0,110800.0,0.5538]
[1747909944754,0.19862896,110810.0,110800.0,0.74333059]
[1747909944995,0.19862896,110810.0,110800.0,0.75235569]
[1747909945804,0.19862896,110810.0,110800.0,0.5538]
[1747909945979,0.18960492,110810.0,110800.0,0.56282527]
[1747909946181,0.18960492,110810.0,110800.0,0.75235586]
[1747909946565,0.18960492,110810.0,110800.0,0.74333068]
[1747909946997,0.18960492,110810.0,110800.0,0.75235586]
[1747909947199,0.18960492,110810.0,110800.0,1.06282527]
[1747909948186,0.18960492,110810.0,110800.0,0.7138]
[1747909948426,0.18960492,110810.0,110800.0,0.54981974]
[1747909950260,0.22058063,110810.0,110800.0,0.54981974]
[1747909951313,0.22058063,110810.0,110800.0,0.31749785]
[1747909951881,0.65946972,110810.0,110800.0,0.31749785]
[1747909952079,1.04957652,110810.0,110800.0,0.31749785]
[1747909952499,1.05957652,110810.0,110800.0,0.28789432]
[1747909953114,1.01946972,110810.0,110800.0,0.28789432]
[1747909954124,1.02146972,110810.0,110800.0,0.26679432]
[1747909954592,0.94929687,110810.0,110800.0,0.26679432]
[1747909954826,0.62091532,110810.0,110800.0,0.26679432]
[1747909955078,0.62491532,110810.0,110800.0,0.26679432]
[1747909955225,0.35828549,110810.0,110800.0,0.26679432]
[1747909955468,0.33828549,110810.0,110800.0,0.26679432]
[1747909955713,0.33928549,110810.0,110800.0,0.26679432]
[1747909956116,0.34528549,110810.0,110800.0,0.26679432]
[1747909956725,0.33074464,110810.0,110800.0,0.26679432]
[1747909956928,0.28212619,110810.0,110800.0,0.26679432]
[1747909957134,0.28212619,110810.0,110800.0,4.64550232]
[1747909957326,0.27112619,110810.0,110800.0,4.98550232]
[1747909957744,0.18958063,110810.0,110800.0,4.98550232]
[1747909958171,0.18558063,110810.0,110800.0,0.60679432]
[1747909958381,0.20138063,110810.0,110800.0,0.60679432]
[1747909958589,0.20438063,110810.0,110800.0,0.60679432]
[1747909958795,0.33246704,110810.0,110800.0,0.60679432]
[1747909960158,0.33246704,110810.0,110800.0,0.26679432]
[1747909961107,0.59509687,110810.0,110800.0,0.26679432]
[1747909961530,0.33246704,110810.0,110800.0,0.26679432]
[1747909967833,0.32946704,110810.0,110800.0,0.26679432]
[1747909968053,0.32946704,110810.0,110800.0,0.31679432]
[1747909968854,0.33246704,110810.0,110800.0,0.31679432]
[1747909969052,0.42198855,110810.0,110800.0,0.31679432]
[1747909969350,0.33246704,110810.0,110800.0,0.31679432]
[1747909971184,0.59509687,110810.0,110800.0,0.31679432]
[1747909972237,0.33246704,110810.0,110800.0,0.31679432]
[1747909973516,0.33246704,110810.0,110800.0,0.26679432]
[1747909976481,0.60509687,110810.0,110800.0,0.26679432]
[1747909976852,0.77198855,110810.0,110800.0,0.21231107]
[1747909976996,0.61141418,110810.0,110800.0,0.21231107]
[1747909977203,0.62141418,110810.0,110800.0,0.21231107]
[1747909977408,0.96141418,110810.0,110800.0,0.21231107]
[1747909977816,0.95841418,110810.0,110800.0,0.21231107]
[1747909978230,0.95941418,110810.0,110800.0,0.21231107]
[1747909978453,1.04893569,110810.0,110800.0,0.21231107]
[1747909978666,1.06155992,110810.0,110800.0,0.21231107]
[1747909982060,0.79893009,110810.0,110800.0,0.21231107]
[1747909982277,0.72155992,110810.0,110800.0,0.21231107]
[1747909982487,0.63203841,110810.0,110800.0,0.21231107]
[1747909983307,0.62341418,110810.0,110800.0,0.21231107]
[1747909984410,0.34078435,110810.0,110800.0,0.21231107]
[1747909985541,0.33446704,110810.0,110800.0,0.21231107]
[1747909985784,0.27912619,110810.0,110800.0,0.21231107]
[1747909986018,0.27912619,110810.0,110800.0,4.63071907]
[1747909986255,0.18958063,110810.0,110800.0,4.63071907]
[1747909986491,0.18958063,110810.0,110800.0,4.68071907]
[1747909987764,0.18558063,110810.0,110800.0,4.68071907]
[1747909987980,0.18758063,110810.0,110800.0,4.68071907]
[1747909988541,0.18358063,110810.0,110800.0,4.68071907]
[1747909988752,0.18558063,110810.0,110800.0,4.68071907]
[1747909989349,0.18558063,110810.0,110800.0,0.26231107]
[1747909989566,0.28966704,110810.0,110800.0,0.26231107]
[1747909995105,0.18558063,110810.0,110800.0,0.30021107]
[1747909996144,0.18558063,110810.0,110800.0,4.67891907]
[1747909996417,0.18558063,110810.0,110800.0,0.30021107]
[1747909996631,0.18558063,110810.0,110800.0,0.26231107]
[1747909997067,0.18558063,110810.0,110800.0,0.28081107]
[1747909998408,0.18558063,110810.0,110800.0,0.30021107]
[1747910004191,0.18458063,110810.0,110800.0,0.30021107]
[1747910004779,0.18458063,110810.0,110800.0,0.26231107]
[1747910005783,0.18458063,110810.0,110800.0,0.09648278]
[1747910006778,0.32736704,110810.0,110800.0,0.43648278]
[1747910007216,0.58999687,110810.0,110800.0,0.09648278]
[1747910008164,0.32736704,110810.0,110800.0,0.09648278]
[1747910008699,0.58999687,110810.0,110800.0,0.09648278]
[1747910009715,0.67951838,110810.0,110800.0,0.09648278]
[1747910010444,0.58999687,110810.0,110800.0,0.09648278]
[1747910010855,0.59631916,110810.0,110800.0,0.09648278]
[1747910011842,0.58999687,110810.0,110800.0,0.09648278]
[1747910013085,0.92999687,110810.0,110800.0,0.09648278]
[1747910013353,0.92999687,110810.0,110800.0,0.04648278]
[1747910013556,0.93632187,110810.0,110800.0,0.04648278]
[1747910015225,0.28045119,110810.0,110800.0,0.04648278]
[1747910015396,0.27412619,110810.0,110800.0,0.04648278]
[1747910015865,0.28866704,110810.0,110800.0,0.04648278]
[1747910020032,0.28866704,110810.0,110800.0,0.08608278]
[1747910020877,0.18458063,110810.0,110800.0,0.08608278]
[1747910021121,0.18458063,110810.0,110800.0,4.46479078]
[1747910021334,0.18458063,110810.0,110800.0,4.80479078]
[1747910022178,0.18258063,110810.0,110800.0,4.80479078]
[1747910022440,0.18358063,110810.0,110800.0,4.80479078]
[1747910023336,0.18158063,110810.0,110800.0,4.80479078]
[1747910023771,0.18258063,110810.0,110800.0,4.80479078]
[1747910025578,0.20062872,110810.0,110800.0,4.80479078]
[1747910025752,0.20965333,110810.0,110800.0,4.80479078]
[1747910028686,0.21867778,110810.0,110800.0,4.80479078]
[1747910029137,0.20965374,110810.0,110800.0,4.80479078]
[1747910029816,0.20965374,110810.0,110800.0,4.99432137]
[1747910030040,0.20965374,110810.0,110800.0,5.00334647]
[1747910030264,0.20965374,110810.0,110800.0,4.99432137]
[1747910030527,0.20062929,110810.0,110800.0,4.99432137]
[1747910030765,0.20062929,110810.0,110800.0,4.80479078]
[1747910030988,0.20062929,110810.0,110800.0,4.81381605]
[1747910031541,0.20062929,110810.0,110800.0,4.80479078]
[1747910032236,0.191605,110810.0,110800.0,4.80479078]
[1747910032985,0.191605,110810.0,110800.0,0.79418278]
[1747910033185,0.191605,110810.0,110800.0,0.69148278]
[1747910033404,0.191605,110810.0,110800.0,0.71158278]
[1747910033589,0.191605,110810.0,110800.0,0.73188278]
[1747910035680,0.191605,110810.0,110800.0,0.71158278]
[1747910036068,0.191605,110810.0,110800.0,0.69148278]
[1747910036546,0.191605,110810.0,110800.0,0.35148278]
[1747910036748,0.33489141,110810.0,110800.0,0.04648278]
[1747910037324,0.20761746,110780.0,110770.0,0.1319752]
[1747910037531,0.19859081,110780.0,110770.0,4.62336374]
[1747910037731,0.20761746,110780.0,110770.0,4.95433636]
[1747910037942,0.19859081,110780.0,110770.0,4.62336374]
[1747910038137,0.19859081,110780.0,110770.0,4.96336374]
[1747910038546,0.20761746,110780.0,110770.0,4.95433636]
[1747910038795,0.19859081,110780.0,110770.0,4.96133636]
[1747910038974,0.19859081,110780.0,110770.0,4.97036374]
[1747910040582,0.20761746,110780.0,110770.0,4.85445356]
[1747910040768,0.21664427,110780.0,110770.0,4.85445356]
[1747910041111,0.20761746,110780.0,110770.0,5.04403541]
[1747910041755,0.20761804,110780.0,110770.0,4.744908]
[1747910041970,0.20761804,110780.0,110770.0,4.725708]
[1747910042183,0.20761804,110780.0,110770.0,4.6451]
[1747910045018,0.21859155,110780.0,110770.0,3.0477]
[1747910045190,0.21859155,110780.0,110770.0,3.3877]
[1747910045191,0.19859155,110780.0,110770.0,3.3877]
[1747910045759,0.19859155,110780.0,110770.0,3.3837]
[1747910046014,0.19859155,110780.0,110770.0,3.3827]
[1747910046443,0.19859155,110780.0,110770.0,3.3847]
[1747910049061,0.19859155,110780.0,110770.0,3.4347]
[1747910049201,0.23909155,110780.0,110770.0,3.4347]
[1747910049429,0.23909155,110780.0,110770.0,1.1029]
[1747910050980,0.21899155,110780.0,110770.0,1.1029]
[1747910053123,0.19859155,110780.0,110770.0,1.1029]
[1747910053993,0.180538,110780.0,110770.0,1.2834543]
[1747910054209,0.20869001,110790.0,110780.0,0.5489649]
[1747910054210,0.18956178,110790.0,110780.0,0.5489649]
[1747910054414,0.18956178,110790.0,110780.0,5.05477184]
[1747910054622,0.18053635,110790.0,110780.0,5.04574527]
[1747910054834,0.20761313,110790.0,110780.0,4.85618046]
[1747910055052,0.21663913,110790.0,110780.0,4.85618046]
[1747910055249,0.20761313,110790.0,110780.0,4.85618046]
[1747910055486,0.19857034,110800.0,110790.0,0.0187]
[1747910055722,0.19857034,110800.0,110790.0,4.417208]
[1747910056395,0.191605,110810.0,110800.0,0.34]
[1747910056620,0.20062929,110810.0,110800.0,4.736908]
[1747910056855,0.21912929,110810.0,110800.0,3.9716]
[1747910057106,0.24785986,110810.0,110800.0,0.34]
[1747910057567,0.2166248,110790.0,110780.0,0.34]
[1747910057794,0.2166248,110790.0,110780.0,4.82645356]
[1747910058016,0.1985728,110790.0,110780.0,5.02639156]
[1747910058240,0.20759855,110790.0,110780.0,5.04444502]
[1747910058502,0.22565039,110790.0,110780.0,4.85488046]
[1747910058950,0.22565039,110790.0,110780.0,4.90488046]
[1747910059425,0.22565039,110790.0,110780.0,4.90688046]
[1747910059636,0.22565039,110790.0,110780.0,4.88748046]
[1747910060501,0.22565039,110790.0,110780.0,4.89650727]
[1747910060703,0.22565039,110790.0,110780.0,4.55850727]
[1747910061044,0.22565039,110790.0,110780.0,4.54948046]
[1747910061246,0.22565039,110790.0,110780.0,4.49948046]
[1747910061653,0.22565039,110790.0,110780.0,4.50850727]
[1747910062067,0.22565039,110790.0,110780.0,4.49948046]
[1747910062480,0.21662439,110790.0,110780.0,4.68001846]
[1747910062695,0.22565047,110790.0,110780.0,4.68001846]
[1747910063290,0.22565047,110790.0,110780.0,4.83045356]
[1747910063496,0.21662504,110790.0,110780.0,4.81225356]
[1747910063703,0.20759896,110790.0,110780.0,4.82128046]
[1747910064026,0.21662496,110790.0,110780.0,4.82128046]
[1747910065178,0.21662496,110790.0,110780.0,5.01084527]
[1747910065749,0.1985728,110790.0,110780.0,5.00181846]
[1747910065960,0.1985728,110790.0,110780.0,5.06739849]
[1747910066165,0.19857272,110790.0,110780.0,5.0764249]
[1747910066361,0.1985728,110790.0,110780.0,5.06739849]
[1747910066797,0.1985728,110790.0,110780.0,5.058372]
[1747910067008,0.21662472,110790.0,110780.0,5.04934527]
[1747910067197,0.21662464,110790.0,110780.0,5.04934527]
[1747910067402,0.21662464,110790.0,110780.0,5.01084527]
[1747910067720,0.21662464,110790.0,110780.0,4.83030727]
[1747910067952,0.21662464,110790.0,110780.0,4.81225356]
[1747910068149,0.21662464,110790.0,110780.0,5.00181846]
[1747910068556,0.21662464,110790.0,110780.0,4.81225356]
[1747910068557,0.22565072,110790.0,110780.0,4.81225356]
[1747910068748,0.21662529,110790.0,110780.0,4.81225356]
[1747910068992,0.19857378,110790.0,110780.0,4.722708]
[1747910069163,0.23657378,110790.0,110780.0,4.722708]
[1747910069833,0.19857378,110790.0,110780.0,4.722708]
[1747910070163,0.19857296,110790.0,110780.0,4.94039955]
[1747910070370,0.19857313,110790.0,110780.0,4.95979963]
[1747910070789,0.19857313,110790.0,110780.0,4.94039963]
[1747910070988,0.2075988,110790.0,110780.0,4.94039971]
[1747910071989,0.2075988,110790.0,110780.0,4.92129971]
[1747910072802,0.21662488,110790.0,110780.0,4.722708]
[1747910074517,0.2075988,110790.0,110780.0,4.722708]
[1747910074732,0.21662488,110790.0,110780.0,4.722708]
[1747910076851,0.20759937,110790.0,110780.0,4.722708]
[1747910078857,0.18051981,110800.0,110790.0,0.34]
[1747910078858,0.18954499,110800.0,110790.0,0.34]
[1747910079252,0.23626993,110800.0,110790.0,5.39]
[1747910079484,0.23626993,110800.0,110790.0,4.973]
[1747910080413,0.23626993,110800.0,110790.0,4.6069]
[1747910081959,0.23626993,110800.0,110790.0,4.6079]
[1747910084038,0.23626993,110800.0,110790.0,4.2679]
[1747910087281,0.18954451,110800.0,110790.0,4.46647362]
[1747910087487,0.19160459,110810.0,110800.0,0.19855537]
[1747910087746,0.00209151,110810.0,110800.0,5.38612563]
[1747910087944,0.00209151,110810.0,110800.0,5.75916927]
[1747910088247,0.20062815,110810.0,110800.0,5.74232039]
[1747910088470,0.00209151,110810.0,110800.0,5.75134509]
[1747910088727,0.01111531,110810.0,110800.0,5.75134509]
[1747910088935,0.00309151,110810.0,110800.0,5.75134509]
[1747910089428,0.00209151,110810.0,110800.0,5.78438873]
[1747910089642,0.00209151,110810.0,110800.0,5.78838873]
[1747910090282,0.00209151,110810.0,110800.0,5.79138873]
[1747910091587,0.00209151,110810.0,110800.0,5.76616935]
[1747910092690,0.00209151,110810.0,110800.0,5.73312571]
[1747910093262,0.01111523,110810.0,110800.0,5.73312571]
[1747910094402,0.02013911,110810.0,110800.0,5.73312571]
[1747910094594,0.01111523,110810.0,110800.0,5.73312571]
[1747910094932,0.02013903,110810.0,110800.0,5.73312571]
[1747910095699,0.02013903,110810.0,110800.0,5.71422571]
[1747910096644,0.01111523,110810.0,110800.0,5.71422571]
[1747910096893,0.00209151,110810.0,110800.0,5.73272571]
[1747910097513,0.01111523,110810.0,110800.0,5.73272571]
[1747910099384,0.00209151,110810.0,110800.0,5.73272571]
[1747910101339,0.00209151,110810.0,110800.0,5.76576935]
[1747910101560,0.01111523,110810.0,110800.0,5.76576935]
[1747910102224,0.02013911,110810.0,110800.0,5.76576935]
[1747910102692,0.01111523,110810.0,110800.0,5.76576935]
[1747910103126,0.02013911,110810.0,110800.0,5.76576935]
[1747910103334,0.02013911,110810.0,110800.0,5.74726935]
[1747910103567,0.02013911,110810.0,110800.0,5.72716935]
[1747910104010,0.01111523,110810.0,110800.0,5.72716935]
[1747910104229,0.02013903,110810.0,110800.0,5.72716935]
[1747910104450,0.20965211,110810.0,110800.0,5.72716935]
[1747910104685,0.23912896,110810.0,110800.0,5.48654556]
[1747910105153,0.23912896,110810.0,110800.0,5.29063556]
[1747910105375,0.23912896,110810.0,110800.0,5.20109]
[1747910105582,0.24815333,110810.0,110800.0,5.21011527]
[1747910105795,0.24815333,110810.0,110800.0,5.20109]
[1747910106017,0.23010443,110810.0,110800.0,5.39062068]
[1747910106240,0.19160443,110810.0,110800.0,5.49821636]
[1747910106469,0.20965244,110810.0,110800.0,5.50724122]
[1747910106677,0.21867673,110810.0,110800.0,5.49821644]
[1747910106883,0.25707738,110810.0,110800.0,5.29063556]
[1747910107096,0.2480535,110810.0,110800.0,5.20109]
[1747910107309,0.2480535,110810.0,110800.0,5.21011527]
[1747910108179,0.23902937,110810.0,110800.0,5.20109]
[1747910108397,0.23000508,110810.0,110800.0,4.86109]
[1747910108629,0.23000508,110810.0,110800.0,5.20109]
[1747910108853,0.23000508,110810.0,110800.0,4.3649]
[1747910111442,0.23902831,110810.0,110800.0,4.55443051]
[1747910111654,0.25707689,110810.0,110800.0,4.55443068]
[1747910111862,0.25707689,110810.0,110800.0,4.3609]
[1747910112065,0.24805317,110810.0,110800.0,4.3579]
[1747910112267,0.24805317,110810.0,110800.0,4.3599]
[1747910112475,0.23902921,110810.0,110800.0,4.3619]
[1747910112771,0.230005,110810.0,110800.0,4.3619]
[1747910113013,0.22098063,110810.0,110800.0,4.3619]
[1747910113663,0.22098063,110810.0,110800.0,3.9797]
[1747910115796,0.23902896,110810.0,110800.0,4.16923068]
[1747910116001,0.24805341,110810.0,110800.0,4.16923068]
[1747910116199,0.20062847,110810.0,110800.0,4.19630566]
[1747910116421,0.20965276,110810.0,110800.0,4.18728088]
[1747910116622,0.20965276,110810.0,110800.0,4.17825586]
[1747910116835,0.20965276,110810.0,110800.0,4.18728088]
[1747910117032,0.21867713,110810.0,110800.0,4.18728096]
[1747910117839,0.21867713,110810.0,110800.0,4.17825586]
[1747910118238,0.23862929,110810.0,110800.0,3.9797]
[1747910118437,0.23862929,110810.0,110800.0,4.16020541]
[1747910118650,0.23862929,110810.0,110800.0,3.9797]
[1747910120137,0.23862929,110810.0,110800.0,4.1782557]
[1747910120349,0.23862929,110810.0,110800.0,3.9797]
[1747910121378,0.23862929,110810.0,110800.0,3.97209156]
[1747910123604,0.229605,110810.0,110800.0,3.97209156]
[1747910127473,0.23862896,110810.0,110800.0,4.16162215]
[1747910127679,0.25667672,110810.0,110800.0,4.16162215]
[1747910127880,0.25667672,110810.0,110800.0,4.16162224]
[1747910128087,0.26570117,110810.0,110800.0,4.16162224]
[1747910128305,0.25667737,110810.0,110800.0,3.97209156]
[1747910128517,0.24765341,110810.0,110800.0,3.97209156]
[1747910128979,0.20062896,110810.0,110800.0,4.16162215]
[1747910129186,0.20062896,110810.0,110800.0,4.15259697]
[1747910129397,0.20965341,110810.0,110800.0,4.15259697]
[1747910129604,0.20965341,110810.0,110800.0,3.97209156]
[1747910129815,0.24635341,110810.0,110800.0,3.97209156]
[1747910130315,0.23732847,110810.0,110800.0,4.16162207]
[1747910130508,0.20062847,110810.0,110800.0,4.26921743]
[1747910130880,0.20062847,110810.0,110800.0,4.26921759]
[1747910131079,0.20062847,110810.0,110800.0,4.27824237]
[1747910131677,0.20062847,110810.0,110800.0,4.32346707]
[1747910131678,0.00209151,110810.0,110800.0,4.32346707]
[1747910131918,0.00209151,110810.0,110800.0,4.35651071]
[1747910132291,0.00209151,110810.0,110800.0,4.38171208]
[1747910132738,0.01111523,110810.0,110800.0,4.38171208]
[1747910132973,0.02013911,110810.0,110800.0,4.34551208]
[1747910133177,0.02013911,110810.0,110800.0,4.31246844]
[1747910133346,0.01111523,110810.0,110800.0,4.31246844]
[1747910133563,0.02013911,110810.0,110800.0,4.31246844]
[1747910133907,0.24845219,110810.0,110800.0,4.26921759]
[1747910134154,0.24845219,110810.0,110800.0,4.27824229]
[1747910134499,0.20965219,110810.0,110800.0,4.27824229]
[1747910135994,0.20965219,110810.0,110800.0,4.26921759]
[1747910136196,0.2186764,110810.0,110800.0,4.27824245]
[1747910136400,0.21867632,110810.0,110800.0,4.27824245]
[1747910136627,0.21867632,110810.0,110800.0,4.26921759]
[1747910137047,0.23767632,110810.0,110800.0,4.27824245]
[1747910137250,0.23767632,110810.0,110800.0,4.28726723]
[1747910137433,0.23767632,110810.0,110800.0,4.27824245]
[1747910137727,0.23767632,110810.0,110800.0,4.28726723]
[1747910138032,0.24670053,110810.0,110800.0,4.26921759]
[1747910138237,0.23767632,110810.0,110800.0,4.24214253]
[1747910138441,0.24670118,110810.0,110800.0,4.27638793]
[1747910138658,0.26560118,110810.0,110800.0,4.28541295]
[1747910138833,0.26560118,110810.0,110800.0,4.27638793]
[1747910139238,0.26560118,110810.0,110800.0,4.25116763]
[1747910139443,0.26560118,110810.0,110800.0,4.27639064]
[1747910140014,0.26560118,110810.0,110800.0,4.26736554]
[1747910140217,0.23852921,110810.0,110800.0,3.99731457]
[1747910140435,0.23852921,110810.0,110800.0,3.97209156]
[1747910141463,0.23852921,110810.0,110800.0,0.1496]
[1747910141675,0.229505,110810.0,110800.0,0.004]
[1747910144806,0.229505,110810.0,110800.0,0.002]
[1747910145211,0.22553051,110800.0,110790.0,0.34]
[1747910146729,0.22553051,110800.0,110790.0,0.342]
[1747910146730,0.32961692,110800.0,110790.0,0.342]
[1747910147145,0.32961692,110800.0,110790.0,0.002]
[1747910147566,0.32961692,110800.0,110790.0,0.004]
[1747910148212,0.32961692,110800.0,110790.0,0.002]
[1747910148906,0.22614762,110790.0,110780.0,0.34]
[1747910150426,0.22614762,110790.0,110780.0,0.342]
[1747910150555,0.22614762,110790.0,110780.0,0.344]
[1747910151450,0.22614762,110790.0,110780.0,0.004]
[1747910151657,0.31569318,110790.0,110780.0,0.004]
[1747910152068,0.31569318,110790.0,110780.0,0.344]
[1747910152481,0.22614762,110790.0,110780.0,0.344]
[1747910160829,0.33023403,110790.0,110780.0,0.344]
[1747910162735,0.33906969,110790.0,110780.0,0.004]
[1747910165120,0.22614762,110790.0,110780.0,0.004]
[1747910165786,0.22614762,110790.0,110780.0,0.344]
[1747910169042,0.22614762,110790.0,110780.0,0.004]
[1747910174279,0.22614762,110790.0,110780.0,0.344]
[1747910176485,0.18956473,110780.0,110770.0,0.25]
[1747910176692,0.18956473,110780.0,110770.0,5.10409]
[1747910177962,0.18956473,110780.0,110770.0,5.10709]
[1747910178385,0.18956473,110780.0,110770.0,5.11009]
[1747910180068,0.18956473,110780.0,110770.0,5.45009]
[1747910181728,0.22806473,110780.0,110770.0,5.45009]
[1747910182211,0.18956473,110780.0,110770.0,5.45009]
[1747910185745,0.19859138,110780.0,110770.0,5.45009]
[1747910187547,0.1805217,110790.0,110780.0,0.3490269]
[1747910187744,0.1985728,110790.0,110780.0,5.43068155]
[1747910187959,0.20759912,110790.0,110780.0,5.32163556]
[1747910188146,0.18953051,110800.0,110790.0,0.1895477]
[1747910188328,0.20757982,110800.0,110790.0,5.50040893]
[1747910188528,0.21660509,110800.0,110790.0,5.52020893]
[1747910188746,0.21660509,110800.0,110790.0,5.51118318]
[1747910189557,0.20758048,110800.0,110790.0,5.28363556]
[1747910189909,0.1985557,110800.0,110790.0,5.29266164]
[1747910190036,0.1985557,110800.0,110790.0,5.48220934]
[1747910190241,0.1985557,110800.0,110790.0,5.30195826]
[1747910190675,0.20758039,110800.0,110790.0,5.3483841]
[1747910191257,0.20758039,110800.0,110790.0,5.33033234]
[1747910191467,0.18953059,110800.0,110790.0,5.09435856]
[1747910191874,0.22753059,110800.0,110790.0,5.004813]
[1747910194014,0.18953059,110800.0,110790.0,5.20338678]
[1747910194240,0.18953059,110800.0,110790.0,5.01383908]
[1747910194640,0.18258063,110810.0,110790.0,5.2395867]
[1747910194805,0.0090247,110800.0,110790.0,0.68224725]
[1747910195023,0.01804948,110800.0,110790.0,5.34706025]
[1747910195422,0.02707442,110800.0,110790.0,5.34706025]
[1747910196052,0.2256302,110800.0,110790.0,5.33803474]
[1747910196358,0.22563012,110800.0,110790.0,5.32013474]
[1747910196497,0.21660485,110800.0,110790.0,5.32013474]
[1747910196718,0.0090247,110800.0,110790.0,5.34756025]
[1747910196943,0.01804956,110800.0,110790.0,5.34756025]
[1747910197407,0.00902461,110800.0,110790.0,5.3475596]
[1747910197637,0.01804939,110800.0,110790.0,5.3475596]
[1747910197808,0.01804939,110800.0,110790.0,5.33853425]
[1747910197809,0.20757982,110800.0,110790.0,5.33853425]
[1747910198325,0.22563019,110800.0,110790.0,5.31110875]
[1747910198533,0.21660558,110800.0,110790.0,5.19423735]
[1747910198749,0.21660558,110800.0,110790.0,5.20326319]
[1747910198959,0.19855578,110800.0,110790.0,5.00468973]
[1747910199168,0.19855578,110800.0,110790.0,5.19423743]
[1747910201360,0.19855578,110800.0,110790.0,5.18521143]
[1747910201592,0.19855578,110800.0,110790.0,5.19423751]
[1747910202040,0.19855578,110800.0,110790.0,5.20326351]
[1747910202476,0.19855578,110800.0,110790.0,5.21228943]
[1747910202699,0.22118063,110810.0,110800.0,0.00902527]
[1747910202918,0.19855488,110800.0,110790.0,0.56727561]
[1747910203123,0.19855488,110800.0,110790.0,5.61727569]
[1747910203351,0.19855488,110800.0,110790.0,5.6263012]
[1747910203565,0.20757982,110800.0,110790.0,5.61727569]
[1747910204218,0.20757966,110800.0,110790.0,5.6263012]
[1747910204433,0.00902453,110800.0,110790.0,5.71584619]
[1747910204656,0.00902453,110800.0,110790.0,5.73534619]
[1747910204877,0.21660419,110800.0,110790.0,5.72632084]
[1747910205303,0.21660419,110800.0,110790.0,5.69779574]
[1747910205496,0.22562929,110800.0,110790.0,5.68702141]
[1747910205699,0.21660419,110800.0,110790.0,5.68702141]
[1747910205926,0.21660419,110800.0,110790.0,5.696047]
[1747910206163,0.21660419,110800.0,110790.0,5.68702141]
[1747910206437,0.22562929,110800.0,110790.0,5.68702141]
[1747910206603,0.22562929,110800.0,110790.0,5.696047]
[1747910206803,0.21660419,110800.0,110790.0,5.70507251]
[1747910207163,0.21660411,110800.0,110790.0,5.70507251]
[1747910207365,0.21660411,110800.0,110790.0,5.72367251]
[1747910207575,0.02707384,110800.0,110790.0,5.72367251]
[1747910207809,0.0360987,110800.0,110790.0,5.72367251]
[1747910207989,0.0360987,110800.0,110790.0,5.74317251]
[1747910209009,0.02707384,110800.0,110790.0,5.74317251]
[1747910209219,0.00209151,110810.0,110800.0,0.53855553]
[1747910209419,0.20062847,110810.0,110800.0,5.59758023]
[1747910209769,0.01111539,110810.0,110800.0,5.70652579]
[1747910210524,0.20062855,110810.0,110800.0,5.67810109]